bitfinex-derivatives/quotes_BTCF0:USTF0_20240925
["timestamp","ask_amount","ask_price","bid_price","bid_amount"]
[1727258445666,0.1,63677.0,63672.0,0.18176779]
[1727258445968,0.1,63674.0,63672.0,0.18176779]
[1727258446964,0.178522,63674.0,63672.0,0.18976779]
[1727258447161,0.179522,63674.0,63672.0,0.19776779]
[1727258447368,0.078522,63673.0,63672.0,0.016]
[1727258447767,0.078522,63673.0,63672.0,0.19314914]
[1727258449174,0.079522,63673.0,63672.0,0.19414914]
[1727258449877,0.080522,63673.0,63672.0,0.19414914]
[1727258451579,0.10821243,63673.0,63672.0,0.19414914]
[1727258452477,0.10821243,63673.0,63672.0,0.27267214]
[1727258452667,0.10821243,63673.0,63672.0,0.37267214]
[1727258454277,0.10821243,63673.0,63672.0,0.27267214]
[1727258456372,0.18673443,63673.0,63672.0,0.19414914]
[1727258456581,0.10821243,63673.0,63672.0,0.19414914]
[1727258458278,0.10821243,63673.0,63672.0,0.27267214]
[1727258459876,0.27625032,63673.0,63672.0,0.27267214]
[1727258460283,0.22213224,63673.0,63672.0,0.27267214]
[1727258460983,0.22213224,63673.0,63672.0,0.19414914]
[1727258461170,0.25312839,63673.0,63672.0,0.19414914]
[1727258461377,0.33165039,63673.0,63672.0,0.017]
[1727258461575,0.25312839,63673.0,63672.0,0.017]
[1727258462381,0.18673443,63673.0,63672.0,0.017]
[1727258462585,0.35435645,63673.0,63672.0,0.017]
[1727258462785,0.157068,63663.0,63657.0,0.36395604]
[1727258462986,0.12546166,63663.0,63657.0,0.36315604]
[1727258463190,0.22463437,63658.0,63657.0,0.36315604]
[1727258463405,0.29220231,63658.0,63657.0,0.36315604]
[1727258463690,0.42397785,63658.0,63657.0,0.36315604]
[1727258464076,0.57983255,63658.0,63657.0,0.36315604]
[1727258464274,0.42397785,63658.0,63657.0,0.37215604]
[1727258464580,0.5012218,63658.0,63657.0,0.37215604]
[1727258464781,0.34543785,63658.0,63657.0,0.37215604]
[1727258465684,0.37437306,63658.0,63657.0,0.37215604]
[1727258465880,0.37537306,63658.0,63657.0,0.37715604]
[1727258466088,0.37537306,63658.0,63657.0,0.36815604]
[1727258466288,0.53115701,63658.0,63657.0,0.36815604]
[1727258466591,0.37637306,63658.0,63657.0,0.36315604]
[1727258467089,0.37543123,63658.0,63657.0,0.36315604]
[1727258467292,0.27543123,63658.0,63657.0,0.36315604]
[1727258467695,0.27543123,63658.0,63657.0,0.44169804]
[1727258467895,0.10947521,63658.0,63657.0,0.44169804]
[1727258468292,0.078535,63662.0,63657.0,1.44337256]
[1727258468591,0.10684217,63662.0,63661.0,0.078537]
[1727258468979,0.20684217,63662.0,63661.0,0.078537]
[1727258469590,0.20784217,63662.0,63661.0,0.078537]
[1727258470093,0.20884217,63662.0,63661.0,0.078537]
[1727258470289,0.20884217,63662.0,63661.0,0.080537]
[1727258470591,0.20784217,63662.0,63661.0,0.080537]
[1727258470796,0.20784217,63662.0,63661.0,0.085537]
[1727258471091,0.001,63662.0,63661.0,0.34991369]
[1727258472597,0.001,63662.0,63661.0,0.24991369]
[1727258473209,0.001,63662.0,63661.0,0.29690236]
[1727258473393,0.001,63662.0,63661.0,0.24991369]
[1727258473587,0.001,63662.0,63661.0,0.29690484]
[1727258473987,0.001,63662.0,63661.0,0.24991369]
[1727258474290,0.001,63662.0,63661.0,0.29690463]
[1727258474496,0.001,63662.0,63661.0,0.24991369]
[1727258474897,0.0264622,63662.0,63661.0,0.24991369]
[1727258475593,0.0240622,63662.0,63661.0,0.24991369]
[1727258475792,0.1287832,63666.0,63665.0,0.078532]
[1727258476000,0.16958789,63666.0,63665.0,0.078532]
[1727258476192,0.16958789,63666.0,63665.0,0.25985698]
[1727258476589,0.24811789,63666.0,63665.0,0.25985698]
[1727258477100,0.24811789,63666.0,63665.0,0.26085698]
[1727258477297,0.24811789,63666.0,63665.0,0.26185698]
[1727258478800,0.2073132,63666.0,63665.0,0.26185698]
[1727258479398,0.1287832,63666.0,63665.0,0.26185698]
[1727258479603,0.16959636,63666.0,63665.0,0.26185698]
[1727258480102,0.06959636,63666.0,63665.0,0.26185698]
[1727258480599,0.04081316,63666.0,63665.0,0.26185698]
[1727258481304,0.082225,63671.0,63670.0,0.078525]
[1727258481305,0.0037,63671.0,63670.0,0.078525]
[1727258481601,0.02859082,63674.0,63673.0,0.078522]
[1727258481790,0.078521,63674.0,63673.0,0.078522]
[1727258481987,0.078521,63674.0,63673.0,0.25533642]
[1727258482594,0.18755822,63677.0,63676.0,0.078518]
[1727258482891,0.18755822,63677.0,63676.0,0.439318]
[1727258482892,0.078517,63677.0,63676.0,0.439318]
[1727258483096,0.078517,63677.0,63676.0,0.3608]
[1727258484195,0.078517,63677.0,63676.0,0.41179771]
[1727258484797,0.078517,63677.0,63676.0,0.3648]
[1727258485491,0.0301,63685.0,63676.0,0.3648]
[1727258485492,0.0779473,63697.0,63687.0,0.078504]
[1727258485804,0.10904122,63711.0,63676.0,1.60514396]
[1727258485805,0.1,63703.0,63691.0,0.4608]
[1727258486103,0.0306,63705.0,63700.0,0.3608]
[1727258486104,0.109083,63705.0,63700.0,0.3608]
[1727258486403,0.109083,63705.0,63691.0,0.3608]
[1727258486404,0.1,63701.0,63691.0,0.3608]
[1727258486605,0.471584,63704.0,63691.0,0.3608]
[1727258486606,0.472504,63704.0,63691.0,0.3608]
[1727258486796,0.11,63692.0,63691.0,0.3608]
[1727258487201,0.1,63692.0,63691.0,0.53792671]
[1727258487605,0.1,63692.0,63691.0,0.3608]
[1727258488001,0.1,63692.0,63687.0,0.3608]
[1727258488208,0.1,63692.0,63678.0,0.00235466]
[1727258488209,0.1,63688.0,63678.0,0.00235466]
[1727258488506,0.14,63681.0,63678.0,0.00235466]
[1727258488812,0.14,63681.0,63678.0,0.36315466]
[1727258489012,0.14,63690.0,63678.0,0.36315466]
[1727258489197,0.14,63690.0,63688.0,0.3608]
[1727258489598,0.61104,63690.0,63688.0,0.3608]
[1727258489795,0.61104,63690.0,63678.0,0.36915466]
[1727258489796,1.21104,63690.0,63678.0,0.36915466]
[1727258489996,0.14,63679.0,63678.0,0.36915466]
[1727258490296,0.23916524,63679.0,63678.0,0.24745357]
[1727258490500,0.23916524,63679.0,63678.0,0.01]
[1727258490811,0.23916524,63679.0,63671.0,0.3608]
[1727258490812,1.48172168,63679.0,63671.0,0.3608]
[1727258490995,0.31143644,63672.0,63671.0,0.3608]
[1727258491201,0.41060168,63672.0,63671.0,0.3608]
[1727258491400,1.52000119,63672.0,63671.0,0.3608]
[1727258491607,1.58228224,63672.0,63671.0,0.3608]
[1727258492610,1.58428224,63672.0,63671.0,0.3608]
[1727258493113,0.98428224,63672.0,63671.0,0.3608]
[1727258493608,1.58428224,63672.0,63665.0,0.3608]
[1727258493821,0.5008,63666.0,63635.0,0.3616]
[1727258494112,0.3608,63651.0,63639.0,0.0313]
[1727258494320,0.3608,63651.0,63650.0,0.36443622]
[1727258494321,0.45996524,63651.0,63650.0,0.36443622]
[1727258494609,0.08460639,63651.0,63650.0,0.36443622]
[1727258494809,0.04386895,63651.0,63650.0,0.36443622]
[1727258495014,0.13990113,63655.0,63654.0,0.078545]
[1727258495219,0.15543479,63657.0,63656.0,0.078543]
[1727258495404,0.18349507,63657.0,63656.0,0.078543]
[1727258495722,0.31560079,63657.0,63656.0,0.078543]
[1727258496212,0.16016383,63657.0,63656.0,0.078543]
[1727258497311,0.16116383,63657.0,63656.0,0.079543]
[1727258497806,0.16116383,63657.0,63656.0,0.078543]
[1727258498007,0.03005811,63657.0,63656.0,0.079543]
[1727258498617,0.02905811,63657.0,63656.0,0.079543]
[1727258498816,0.03005811,63657.0,63656.0,0.079543]
[1727258499405,0.02905811,63657.0,63656.0,0.078543]
[1727258499612,0.03005811,63657.0,63656.0,0.079543]
[1727258500620,0.002,63657.0,63656.0,0.39737706]
[1727258501418,0.3608,63659.0,63658.0,0.07854]
[1727258501718,0.00235697,63664.0,63663.0,0.078534]
[1727258503016,0.00335697,63664.0,63663.0,0.078534]
[1727258503615,0.00435697,63664.0,63663.0,0.079534]
[1727258504216,0.00335697,63664.0,63663.0,0.078534]
[1727258504415,0.00335697,63664.0,63663.0,0.079534]
[1727258505512,0.04223508,63664.0,63663.0,0.079534]
[1727258505722,0.04223508,63664.0,63663.0,0.24807256]
[1727258505912,0.00435697,63664.0,63663.0,0.24807256]
[1727258506217,0.00335697,63664.0,63663.0,0.24807256]
[1727258506419,0.0965738,63664.0,63663.0,0.24807256]
[1727258506618,0.0955738,63664.0,63663.0,0.27867256]
[1727258507115,0.00235697,63664.0,63663.0,0.27767256]
[1727258507312,0.00335697,63664.0,63663.0,0.27867256]
[1727258507914,0.00435697,63664.0,63663.0,0.27867256]
[1727258508719,0.00335697,63664.0,63663.0,0.27767256]
[1727258508913,0.00335697,63664.0,63663.0,0.27867256]
[1727258510018,0.00335697,63664.0,63663.0,0.27767256]
[1727258510423,0.00435697,63664.0,63663.0,0.27867256]
[1727258510733,0.00255697,63664.0,63663.0,0.27867256]
[1727258510908,0.00155697,63664.0,63663.0,0.27867256]
[1727258511311,0.00255697,63664.0,63663.0,0.27867256]
[1727258512318,0.00155697,63664.0,63663.0,0.078534]
[1727258512520,0.00155697,63664.0,63663.0,0.079534]
[1727258512521,0.00255697,63664.0,63663.0,0.079534]
[1727258512816,0.00155697,63664.0,63663.0,0.079534]
[1727258513020,0.00255697,63664.0,63663.0,0.079534]
[1727258513819,0.00155697,63664.0,63663.0,0.078534]
[1727258514019,0.00255697,63664.0,63663.0,0.079534]
[1727258515628,0.00055697,63664.0,63663.0,0.078534]
[1727258516211,0.00155697,63664.0,63663.0,0.078534]
[1727258516412,0.00255697,63664.0,63663.0,0.079534]
[1727258516917,0.00155697,63664.0,63663.0,0.078534]
[1727258517117,0.00255697,63664.0,63663.0,0.079534]
[1727258517720,0.00155697,63664.0,63663.0,0.079534]
[1727258517927,0.00255697,63664.0,63663.0,0.079534]
[1727258518128,0.08108997,63664.0,63663.0,0.079534]
[1727258518530,0.08108997,63664.0,63663.0,0.12650789]
[1727258518828,0.00255697,63664.0,63663.0,0.12650789]
[1727258519528,0.00155697,63664.0,63663.0,0.079534]
[1727258519731,0.00055697,63664.0,63663.0,0.079534]
[1727258520124,0.00055697,63664.0,63663.0,0.078534]
[1727258520427,0.07908997,63664.0,63663.0,0.078534]
[1727258520926,0.08008997,63664.0,63663.0,0.079534]
[1727258521231,0.08108997,63664.0,63663.0,0.079534]
[1727258522031,0.08008997,63664.0,63663.0,0.14216585]
[1727258522330,0.001,63664.0,63663.0,0.32619839]
[1727258522523,0.38889488,63669.0,63668.0,0.078528]
[1727258522727,0.38889488,63669.0,63668.0,0.28122628]
[1727258523030,0.38889488,63669.0,63668.0,0.45926858]
[1727258523533,0.3608,63669.0,63668.0,0.45926858]
[1727258524124,0.3608,63669.0,63668.0,0.45925966]
[1727258524321,0.0037,63676.0,63675.0,0.078519]
[1727258524522,0.440177,63694.0,63681.0,0.078512]
[1727258524523,0.078511,63682.0,63681.0,0.078512]
[1727258524736,0.02305919,63682.0,63681.0,0.26552758]
[1727258524939,0.078508,63684.0,63683.0,0.078509]
[1727258525431,0.078509,63683.0,63682.0,0.04701474]
[1727258525623,0.00235625,63685.0,63681.0,0.04801474]
[1727258525624,0.001,63682.0,63681.0,0.04801474]
[1727258525821,0.002,63682.0,63681.0,0.002]
[1727258526028,0.002,63682.0,63681.0,0.080512]
[1727258526029,0.080511,63682.0,63681.0,0.080512]
[1727258526536,0.079511,63682.0,63681.0,0.079512]
[1727258527839,0.078511,63682.0,63681.0,0.078512]
[1727258528233,0.1636937,63682.0,63681.0,0.079512]
[1727258528934,0.1636937,63682.0,63681.0,0.080512]
[1727258529436,0.1636937,63682.0,63681.0,0.079512]
[1727258529827,0.078511,63682.0,63681.0,0.079512]
[1727258530140,0.1636937,63682.0,63681.0,0.080512]
[1727258530840,0.3036937,63682.0,63681.0,0.002]
[1727258532830,0.3036937,63682.0,63681.0,0.001]
[1727258533639,0.078514,63679.0,63678.0,0.078515]
[1727258533839,0.078525,63673.0,63672.0,0.078523]
[1727258534139,0.078525,63673.0,63665.0,0.3255]
[1727258534140,0.07853,63666.0,63665.0,0.40033]
[1727258534437,0.11794733,63666.0,63665.0,0.07853]
[1727258534626,0.28830319,63666.0,63665.0,0.07853]
[1727258535041,0.07853,63666.0,63665.0,0.07853]
[1727258535341,0.07853,63666.0,63665.0,0.07953]
[1727258535342,0.07953,63666.0,63665.0,0.07953]
[1727258535740,0.08053,63666.0,63665.0,0.08053]
[1727258536238,0.07953,63666.0,63665.0,0.12753351]
[1727258536841,0.07853,63666.0,63665.0,0.12753351]
[1727258538339,0.10033338,63666.0,63665.0,0.12753351]
[1727258538734,0.02180338,63666.0,63665.0,0.08053]
[1727258538929,0.078528,63668.0,63667.0,0.078528]
[1727258540141,0.078528,63668.0,63667.0,0.079528]
[1727258541841,0.078528,63668.0,63667.0,0.001]
[1727258542940,0.157056,63668.0,63667.0,0.001]
[1727258543539,0.078528,63668.0,63667.0,0.001]
[1727258545136,0.078528,63668.0,63667.0,0.079529]
[1727258545439,0.078528,63668.0,63667.0,0.001]
[1727258546241,0.078528,63668.0,63667.0,0.079529]
[1727258546634,0.078528,63668.0,63667.0,0.12653414]
[1727258547234,0.078528,63668.0,63667.0,0.04800514]
[1727258547432,0.078528,63668.0,63667.0,0.001]
[1727258547433,0.157056,63668.0,63667.0,0.001]
[1727258551251,0.078528,63668.0,63667.0,0.079529]
[1727258551749,0.078528,63668.0,63667.0,0.12653414]
[1727258552449,0.078528,63668.0,63667.0,0.079529]
[1727258553350,0.078528,63668.0,63667.0,0.12653414]
[1727258553540,0.078528,63668.0,63667.0,0.079529]
[1727258553736,0.4712,63667.0,63661.0,0.06266921]
[1727258553939,0.4712,63667.0,63637.0,0.0219011]
[1727258553940,0.3608,63661.0,63637.0,0.0219011]
[1727258554148,0.3608,63638.0,63630.0,0.0316]
[1727258554350,0.06227061,63636.0,63630.0,0.0316]
[1727258554652,0.04664095,63634.0,63631.0,0.14]
[1727258554944,0.07857,63634.0,63630.0,0.0316]
[1727258555147,0.078572,63633.0,63630.0,0.0316]
[1727258555944,0.078572,63633.0,63631.0,0.001]
[1727258556247,0.3608,63632.0,63631.0,0.001]
[1727258556455,0.078574,63631.0,63630.0,0.0326]
[1727258558450,0.078574,63631.0,63630.0,0.0316]
[1727258559046,0.079574,63631.0,63630.0,0.0316]
[1727258559253,0.080574,63631.0,63630.0,0.0326]
[1727258560961,0.080574,63631.0,63630.0,0.202815]
[1727258561655,0.002,63631.0,63630.0,0.202815]
[1727258562049,0.080574,63631.0,63630.0,0.202815]
[1727258562245,0.078567,63637.0,63630.0,1.635095]
[1727258562450,0.078567,63636.0,63635.0,0.14]
[1727258562854,0.078567,63636.0,63635.0,0.31228163]
[1727258563359,0.078567,63636.0,63635.0,0.17228163]
[1727258563764,0.078574,63631.0,63630.0,0.0326]
[1727258564148,0.078574,63631.0,63630.0,1.27535913]
[1727258564959,0.078574,63631.0,63630.0,1.27435913]
[1727258565661,0.079574,63631.0,63630.0,1.27635913]
[1727258566454,0.080574,63631.0,63630.0,1.27835913]
[1727258567347,0.080574,63631.0,63630.0,0.67835913]
[1727258568453,0.002,63631.0,63630.0,1.35693413]
[1727258568664,0.3608,63637.0,63635.0,0.078568]
[1727258568855,0.3608,63637.0,63636.0,0.108967]
[1727258569054,0.3608,63637.0,63636.0,0.27501574]
[1727258569845,0.3618,63637.0,63636.0,0.27501574]
[1727258570047,0.3618,63637.0,63636.0,0.27601574]
[1727258570048,0.3628,63637.0,63636.0,0.27601574]
[1727258571560,0.3628,63637.0,63636.0,0.27901574]
[1727258573857,0.002,63637.0,63636.0,0.27901574]
[1727258575459,0.02266652,63644.0,63636.0,0.27901574]
[1727258575460,0.0037,63647.0,63644.0,0.078558]
[1727258575661,0.078549,63651.0,63644.0,0.078558]
[1727258575865,0.078549,63651.0,63644.0,0.25931787]
[1727258576054,0.078549,63651.0,63650.0,0.07855]
[1727258576363,0.10042346,63651.0,63650.0,0.25919336]
[1727258576562,0.078549,63651.0,63650.0,0.25919336]
[1727258576763,0.078549,63651.0,63650.0,0.18064336]
[1727258577164,0.078551,63650.0,63648.0,0.078553]
[1727258577461,0.078551,63650.0,63649.0,0.25209303]
[1727258577671,0.078543,63657.0,63656.0,0.078542]
[1727258578163,0.078543,63657.0,63656.0,0.25927725]
[1727258578951,0.088543,63657.0,63656.0,0.25927725]
[1727258579152,0.097543,63657.0,63656.0,0.25927725]
[1727258579567,0.097543,63657.0,63656.0,0.18073525]
[1727258579959,0.097543,63657.0,63651.0,0.17088584]
[1727258580156,0.15531678,63656.0,63654.0,0.078544]
[1727258580358,0.15531678,63656.0,63646.0,0.14]
[1727258580359,0.07855,63650.0,63644.0,0.078557]
[1727258580566,0.078556,63645.0,63644.0,0.078557]
[1727258580760,0.15498205,63645.0,63644.0,0.17202044]
[1727258581063,0.15498205,63645.0,63642.0,0.3608]
[1727258581064,0.07642605,63645.0,63642.0,0.3608]
[1727258581260,0.078564,63639.0,63638.0,0.0333]
[1727258581475,0.15493436,63639.0,63638.0,0.0333]
[1727258581664,0.2137422,63639.0,63638.0,0.20733073]
[1727258582262,0.15493436,63639.0,63638.0,0.17403073]
[1727258582572,0.15493436,63639.0,63638.0,0.003]
[1727258582573,0.15593436,63639.0,63638.0,0.003]
[1727258582757,0.21463304,63639.0,63638.0,0.003]
[1727258583071,0.21463304,63639.0,63638.0,0.17227899]
[1727258583467,0.21428724,63639.0,63638.0,0.17227899]
[1727258584360,0.21528724,63639.0,63638.0,0.17527899]
[1727258585575,0.23775804,63639.0,63638.0,0.17527899]
[1727258585872,0.31632204,63639.0,63638.0,0.23017899]
[1727258586262,0.362294,63639.0,63638.0,0.23017899]
[1727258586666,0.440858,63639.0,63638.0,0.23017899]
[1727258587368,0.1815988,63639.0,63638.0,0.23017899]
[1727258590974,0.1030348,63639.0,63638.0,0.23017899]
[1727258591876,0.080564,63639.0,63638.0,0.23017899]
[1727258592070,0.1272679,63639.0,63638.0,0.23017899]
[1727258592275,0.002,63639.0,63638.0,0.44874399]
[1727258593664,0.002,63639.0,63638.0,0.52730899]
[1727258593865,0.0467039,63645.0,63638.0,0.52730899]
[1727258593866,0.0037,63648.0,63641.0,0.078561]
[1727258594071,0.0467039,63651.0,63650.0,0.07855]
[1727258594273,0.0467039,63651.0,63647.0,0.3608]
[1727258594274,0.078549,63652.0,63651.0,0.078549]
[1727258594466,0.078549,63652.0,63651.0,0.25697479]
[1727258594667,0.078549,63652.0,63651.0,0.078549]
[1727258595075,0.078549,63652.0,63651.0,0.25697479]
[1727258595281,0.0467039,63654.0,63651.0,0.17842579]
[1727258595488,0.06227187,63657.0,63651.0,0.31842579]
[1727258595489,0.26083662,63653.0,63651.0,0.31842579]
[1727258595773,0.13630066,63652.0,63651.0,0.218549]
[1727258595967,0.20308096,63654.0,63653.0,0.078546]
[1727258596163,0.078545,63654.0,63653.0,0.078546]
[1727258596366,0.20315724,63654.0,63653.0,0.25769802]
[1727258596564,0.33948566,63654.0,63653.0,0.25769802]
[1727258597067,0.13632842,63654.0,63653.0,0.25769802]
[1727258597771,0.14232842,63654.0,63653.0,0.25769802]
[1727258598176,0.14232842,63654.0,63653.0,0.17915202]
[1727258598375,0.078553,63648.0,63647.0,0.439353]
[1727258598675,0.20312954,63648.0,63647.0,0.62116257]
[1727258600791,0.57583211,63648.0,63647.0,0.18180957]
[1727258601372,0.49727911,63648.0,63647.0,0.33891757]
[1727258601575,0.49727911,63648.0,63647.0,0.078554]
[1727258601576,0.07776643,63648.0,63647.0,0.078554]
[1727258601775,0.07776643,63648.0,63647.0,0.25759593]
[1727258602370,0.001,63648.0,63647.0,0.25759593]
[1727258605785,0.078564,63639.0,63638.0,0.05578]
[1727258606083,0.078564,63639.0,63638.0,0.0549]
[1727258606287,0.078564,63639.0,63638.0,0.22174723]
[1727258606490,0.12528416,63639.0,63638.0,0.22174723]
[1727258606786,0.078564,63639.0,63638.0,0.22174723]
[1727258607387,0.079564,63639.0,63638.0,0.22574723]
[1727258607979,0.080564,63639.0,63638.0,0.22974723]
[1727258608383,0.080564,63639.0,63638.0,0.26214723]
[1727258608583,0.12728416,63639.0,63638.0,0.26214723]
[1727258608783,0.48808416,63639.0,63638.0,0.26214723]
[1727258611084,0.441364,63639.0,63638.0,0.26214723]
[1727258611279,0.48809326,63639.0,63638.0,0.26214723]
[1727258611982,0.441364,63639.0,63638.0,0.26214723]
[1727258612693,0.45891409,63639.0,63638.0,0.26214723]
[1727258613089,0.50564335,63639.0,63638.0,0.26214723]
[1727258613596,0.48809326,63639.0,63638.0,0.34071223]
[1727258613995,0.441364,63639.0,63638.0,0.34071223]
[1727258618096,0.002,63639.0,63638.0,0.34071223]
[1727258618799,0.07856,63643.0,63638.0,0.34071223]
[1727258618800,0.07788102,63643.0,63638.0,1.33354723]
[1727258619009,0.0037,63653.0,63644.0,0.078558]
[1727258619010,0.00053961,63648.0,63644.0,0.078558]
[1727258619191,0.0042,63660.0,63647.0,0.579354]
[1727258619192,0.0037,63660.0,63647.0,0.579354]
[1727258619391,0.082232,63665.0,63659.0,0.14]
[1727258619605,0.3608,63666.0,63645.0,0.06271104]
[1727258619897,0.3608,63666.0,63634.0,0.09367308]
[1727258619898,0.078559,63643.0,63614.0,0.14]
[1727258620203,0.078559,63643.0,63619.0,0.0303]
[1727258620204,0.3608,63620.0,63619.0,0.0303]
[1727258620393,0.3608,63620.0,63619.0,0.20210044]
[1727258620595,0.3608,63620.0,63619.0,0.50186]
[1727258620791,0.3608,63620.0,63619.0,1.27366044]
[1727258621802,0.3618,63620.0,63619.0,1.28666044]
[1727258621999,0.3618,63620.0,63619.0,1.42666044]
[1727258622501,0.3628,63620.0,63619.0,0.83766044]
[1727258623099,0.263,63620.0,63619.0,1.43766044]
[1727258623992,0.263,63620.0,63599.0,0.09367308]
[1727258623993,1.3738,63620.0,63598.0,0.09367308]
[1727258624199,1.3738,63620.0,63584.0,0.3608]
[1727258624200,0.475301,63600.0,63592.0,0.14]
[1727258624394,0.3608,63593.0,63592.0,0.14]
[1727258624822,0.3608,63593.0,63592.0,0.31403417]
[1727258625106,0.3608,63593.0,63592.0,0.17403417]
[1727258625294,0.475301,63593.0,63592.0,0.31403417]
[1727258625496,0.3608,63593.0,63592.0,0.14]
[1727258625696,0.3618,63593.0,63592.0,0.30990694]
[1727258626495,0.3618,63593.0,63592.0,1.38166694]
[1727258627913,0.3608,63600.0,63592.0,1.46028794]
[1727258628122,0.3608,63600.0,63592.0,0.84852794]
[1727258628123,0.001,63593.0,63592.0,0.84852794]
[1727258628605,0.001,63593.0,63592.0,1.32028794]
[1727258629102,0.3618,63600.0,63592.0,1.38166694]
[1727258629306,0.3618,63600.0,63599.0,0.14]
[1727258629707,0.3618,63600.0,63599.0,0.79172791]
[1727258630012,0.3618,63600.0,63599.0,1.39172791]
[1727258630312,0.3628,63600.0,63599.0,1.39172791]
[1727258630706,0.3618,63600.0,63599.0,1.39172791]
[1727258632111,0.3628,63600.0,63599.0,1.39172791]
[1727258632701,0.3628,63600.0,63599.0,1.47034091]
[1727258632702,0.3618,63600.0,63599.0,1.47034091]
[1727258632905,0.3628,63600.0,63599.0,1.47034091]
[1727258633305,0.002,63600.0,63599.0,1.47034091]
[1727258633505,0.002,63600.0,63599.0,0.39862091]
[1727258633810,0.002,63600.0,63599.0,1.47034091]
[1727258634806,0.3608,63606.0,63599.0,1.39172791]
[1727258635008,0.3608,63616.0,63599.0,0.85862091]
[1727258635009,0.001,63600.0,63599.0,0.85862091]
[1727258635204,0.3608,63609.0,63604.0,0.078607]
[1727258635416,0.3608,63609.0,63605.0,0.218606]
[1727258635625,0.3608,63609.0,63606.0,0.078604]
[1727258635821,0.3608,63609.0,63607.0,0.078603]
[1727258636119,0.3608,63609.0,63607.0,0.25680275]
[1727258636314,0.3608,63609.0,63607.0,0.078603]
[1727258636511,0.3608,63609.0,63608.0,0.17010574]
[1727258637811,0.3648,63609.0,63608.0,0.17010574]
[1727258638124,0.3688,63609.0,63608.0,0.24870774]
[1727258638333,0.483301,63609.0,63608.0,0.24870774]
[1727258638621,0.3708,63609.0,63608.0,0.078602]
[1727258638823,0.3708,63609.0,63608.0,0.25067616]
[1727258639427,0.3708,63609.0,63588.0,0.09367308]
[1727258639428,0.3608,63590.0,63576.0,0.10919096]
[1727258639624,0.3608,63590.0,63563.0,0.12634822]
[1727258639625,0.078684,63542.0,63530.0,0.0037]
[1727258639935,0.7216,63531.0,63508.0,0.0008]
[1727258640218,0.7216,63531.0,63506.0,0.3616]
[1727258640219,0.15,63536.0,63531.0,0.16867552]
[1727258640420,0.15,63536.0,63500.0,0.3608]
[1727258640421,0.7216,63532.0,63517.0,0.16867552]
[1727258640610,0.01805739,63546.0,63509.0,0.16867552]
[1727258640611,0.7216,63518.0,63509.0,0.16867552]
[1727258640810,0.3608,63510.0,63499.0,0.00782753]
[1727258641013,0.3608,63510.0,63506.0,0.22]
[1727258641211,0.3608,63510.0,63501.0,0.16867552]
[1727258641212,0.3598,63508.0,63501.0,0.16867552]
[1727258641407,0.3598,63508.0,63493.0,0.00236245]
[1727258641408,0.3608,63502.0,63493.0,0.00236245]
[1727258641617,0.3608,63502.0,63501.0,0.078734]
[1727258641821,0.3608,63502.0,63501.0,0.39092935]
[1727258642023,0.3608,63502.0,63501.0,1.29244]
[1727258642320,0.3598,63502.0,63501.0,1.47734176]
[1727258642524,0.3608,63508.0,63501.0,1.47378471]
[1727258642730,0.3109,63508.0,63507.0,0.22]
[1727258642910,0.0042,63526.0,63507.0,0.22]
[1727258642911,0.0037,63523.0,63507.0,0.5808]
[1727258643115,0.3645,63530.0,63522.0,0.22]
[1727258643326,0.3608,63530.0,63522.0,0.22]
[1727258643625,0.3608,63530.0,63523.0,0.17899429]
[1727258643922,0.3608,63524.0,63523.0,0.17899429]
[1727258644126,0.3608,63524.0,63520.0,0.17899429]
[1727258644317,0.3608,63531.0,63521.0,0.3608]
[1727258644519,0.3608,63531.0,63530.0,0.22]
[1727258644921,1.433,63531.0,63530.0,0.16957464]
[1727258645115,0.833,63531.0,63517.0,0.00236105]
[1727258645321,0.3608,63522.0,63518.0,0.22]
[1727258645521,0.3608,63522.0,63520.0,0.16761665]
[1727258645714,0.3608,63522.0,63518.0,0.38761665]
[1727258645928,0.3608,63522.0,63518.0,0.22]
[1727258646123,0.3608,63522.0,63521.0,0.16761665]
[1727258646338,0.7216,63522.0,63519.0,0.16761665]
[1727258646539,0.7216,63522.0,63518.0,0.22]
[1727258646831,0.7216,63522.0,63521.0,0.17730574]
[1727258647029,0.7216,63522.0,63519.0,0.17730574]
[1727258647326,0.7216,63522.0,63518.0,0.22]
[1727258647527,0.7216,63522.0,63519.0,0.17510912]
[1727258647727,0.7236,63522.0,63519.0,0.17510912]
[1727258648119,0.7226,63522.0,63519.0,0.17510912]
[1727258648428,0.7236,63522.0,63519.0,0.17510912]
[1727258650624,0.7236,63522.0,63519.0,0.25382012]
[1727258651015,0.7236,63522.0,63520.0,0.07871]
[1727258651428,0.002,63522.0,63521.0,0.17508659]
[1727258652231,0.001,63522.0,63521.0,0.17508659]
[1727258652422,0.002,63522.0,63521.0,0.17508659]
[1727258653219,0.002,63522.0,63521.0,0.18025605]
[1727258653722,0.3628,63522.0,63521.0,0.17508659]
[1727258653920,0.3618,63522.0,63521.0,0.17508659]
[1727258654132,0.3618,63522.0,63500.0,0.439535]
[1727258654133,1.43408,63522.0,63500.0,0.5816]
[1727258654323,0.3608,63513.0,63500.0,0.0008]
[1727258654525,0.3608,63513.0,63494.0,0.3608]
[1727258654526,0.3608,63504.0,63503.0,0.078732]
[1727258654831,0.3608,63504.0,63503.0,0.2498763]
[1727258655223,0.3608,63504.0,63503.0,0.078732]
[1727258656330,0.3618,63504.0,63503.0,0.24977637]
[1727258656529,0.3618,63504.0,63503.0,0.078732]
[1727258656728,0.3618,63504.0,63503.0,0.25489237]
[1727258657033,0.3628,63504.0,63503.0,0.25489237]
[1727258657929,0.3628,63504.0,63503.0,0.078732]
[1727258658333,0.3628,63504.0,63503.0,0.24278614]
[1727258659528,0.3608,63513.0,63512.0,0.078721]
[1727258659919,0.3608,63513.0,63512.0,0.25072673]
[1727258660127,1.43316,63513.0,63512.0,0.25072673]
[1727258660433,1.43316,63513.0,63512.0,0.078721]
[1727258660633,1.43416,63513.0,63512.0,0.078721]
[1727258660846,0.83416,63513.0,63512.0,0.078721]
[1727258661137,1.43416,63513.0,63512.0,0.078721]